[Event "Cerrado Blitz Quart 2018"]
[Site "Quart (Valencia), Spain"]
[Date "2018.08.30"]
[Round "4.2"]
[White "Lara Lopez, Sergio"]
[Black "Ordoñez Carrasco, Jorge"]
[Result "1-0"]
[TimeControl "7 minutos +3s por jugada"]
[WhiteFideId "2268400"]
[BlackFideId "24529826"]
[WhiteElo "2165"]
[BlackElo "1531"]

1. e4 {[%clk 00:07:04]} {[%emt 00:00:06]} c5 {[%clk 00:07:05]} {[%emt
00:00:04]} 2. Nc3 {[%clk 00:07:06]} Nc6 {[%clk 00:07:06]} 3. g3 {[%clk
00:07:08]} {[%emt 00:00:03]} d6 {[%clk 00:07:01]} {[%emt 00:00:04]} 4. Bg2
{[%clk 00:07:10]} {[%emt 00:00:04]} g6 {[%clk 00:06:59]} {[%emt 00:00:04]} 5.
d3 {[%clk 00:07:11]} Bg7 {[%clk 00:07:01]} {[%emt 00:00:04]} 6. Be3 {[%clk
00:07:10]} {[%emt 00:00:10]} Nf6 {[%clk 00:06:57]} 7. h3 {[%clk 00:07:12]} O-O
{[%clk 00:06:59]} {[%emt 00:00:03]} 8. Qd2 {[%clk 00:07:13]} Ne8 {[%clk
00:06:30]} {[%emt 00:00:29]} 9. Bh6 {[%clk 00:07:10]} {[%emt 00:00:11]} Nc7
{[%clk 00:06:31]} {[%emt 00:00:07]} 10. Bxg7 {[%clk 00:07:08]} {[%emt
00:00:03]} Kxg7 {[%clk 00:06:33]} 11. h4 {[%clk 00:07:07]} h5 {[%clk 00:06:29]}
{[%emt 00:00:06]} 12. Nh3 {[%clk 00:06:58]} {[%emt 00:00:10]} Ne6 {[%clk
00:06:27]} {[%emt 00:00:43]} 13. Nd1 {[%clk 00:06:57]} Rb8 {[%clk 00:06:15]}
{[%emt 00:00:03]} 14. f4 {[%clk 00:06:59]} b5 {[%clk 00:06:12]} 15. Ne3 {[%clk
00:06:48]} {[%emt 00:00:03]} Bd7 {[%clk 00:06:07]} {[%emt 00:00:05]} 16. f5
{[%clk 00:06:49]} {[%emt 00:00:34]} Nc7 {[%clk 00:05:57]} {[%emt 00:00:04]} 17.
O-O {[%clk 00:06:40]} b4 {[%clk 00:05:34]} {[%emt 00:00:18]} 18. Nf4 {[%clk
00:06:40]} {[%emt 00:00:03]} Nd4 {[%clk 00:05:29]} {[%emt 00:00:06]} 19. c3
{[%clk 00:06:23]} {[%emt 00:00:19]} Nc6 {[%clk 00:05:02]} {[%emt 00:00:30]} 20.
Qe2 {[%clk 00:06:24]} {[%emt 00:00:35]} bxc3 {[%clk 00:04:53]} {[%emt
00:00:04]} 21. bxc3 {[%clk 00:06:26]} Nb5 {[%clk 00:04:21]} {[%emt 00:00:14]}
22. Rac1 {[%clk 00:06:27]} {[%emt 00:00:06]} Nc7 {[%clk 00:03:38]} {[%emt
00:00:42]} 23. g4 {[%clk 00:06:27]} {[%emt 00:00:04]} hxg4 {[%clk 00:03:37]}
{[%emt 00:00:04]} 24. Qxg4 {[%clk 00:06:24]} {[%emt 00:00:11]} Ne5 {[%clk
00:03:32]} {[%emt 00:00:03]} 25. Qg5 {[%clk 00:05:33]} {[%emt 00:00:52]} Qe8
{[%clk 00:03:18]} {[%emt 00:00:15]} 26. f6+ {[%clk 00:05:27]} {[%emt 00:00:10]}
exf6 {[%clk 00:03:14]} {[%emt 00:00:33]} 27. Nh5+ {[%clk 00:05:28]} 1-0

[Event "Cerrado Blitz Quart 2018"]
[Site "Quart (Valencia), Spain"]
[Date "2018.08.30"]
[Round "4.3"]
[White "Galvan Cipriani, Viviana"]
[Black "Chernikov, Vladimir"]
[Result "1/2-1/2"]
[TimeControl "7 minutos +3s por jugada"]
[WhiteTitle "WFM"]
[WhiteFideId "32041144"]
[BlackFideId "14112914"]
[WhiteElo "1948"]
[BlackElo "2035"]

1. c4 {[%clk 00:07:03]} {[%emt 00:00:02]} b6 {[%clk 00:07:05]} {[%emt
00:00:02]} 2. Nc3 {[%clk 00:07:03]} {[%emt 00:00:02]} Bb7 {[%clk 00:07:07]}
{[%emt 00:00:01]} 3. e4 {[%clk 00:07:05]} {[%emt 00:00:02]} e6 {[%clk
00:07:07]} {[%emt 00:00:03]} 4. g3 {[%clk 00:07:04]} {[%emt 00:00:03]} g6
{[%clk 00:07:08]} {[%emt 00:00:03]} 5. Bg2 {[%clk 00:07:05]} {[%emt 00:00:01]}
Bg7 {[%clk 00:07:10]} {[%emt 00:00:01]} 6. Nge2 {[%clk 00:07:05]} {[%emt
00:00:03]} d6 {[%clk 00:07:11]} {[%emt 00:00:01]} 7. d4 {[%clk 00:07:07]}
{[%emt 00:00:02]} Nd7 {[%clk 00:07:12]} {[%emt 00:00:02]} 8. Be3 {[%clk
00:07:08]} {[%emt 00:00:02]} Ne7 {[%clk 00:07:13]} {[%emt 00:00:02]} 9. O-O
{[%clk 00:07:09]} {[%emt 00:00:03]} O-O {[%clk 00:07:13]} {[%emt 00:00:02]} 10.
Qd2 {[%clk 00:07:10]} {[%emt 00:00:02]} Re8 {[%clk 00:07:11]} {[%emt 00:00:06]}
11. f4 {[%clk 00:07:09]} {[%emt 00:00:03]} c5 {[%clk 00:07:12]} {[%emt
00:00:02]} 1/2-1/2

[Event "Cerrado Blitz Quart 2018"]
[Site "Quart (Valencia), Spain"]
[Date "2018.08.30"]
[Round "4.4"]
[White "Vega Gutierrez, Sabrina"]
[Black "Diaz Velandia, J Manuel"]
[Result "1/2-1/2"]
[TimeControl "7 minutos +3s por jugada"]
[WhiteTitle "IM"]
[BlackTitle "FM"]
[WhiteFideId "2219026"]
[BlackFideId "3901939"]
[WhiteElo "2188"]
[BlackElo "2367"]

1. e4 {[%clk 00:07:04]} c6 {[%clk 00:07:05]} {[%emt 00:00:02]} 2. d4 {[%clk
00:07:05]} {[%emt 00:00:02]} d5 {[%clk 00:07:06]} {[%emt 00:00:02]} 3. e5
{[%clk 00:07:06]} {[%emt 00:00:01]} c5 {[%clk 00:07:08]} {[%emt 00:00:02]} 4.
dxc5 {[%clk 00:07:08]} {[%emt 00:00:02]} Nc6 {[%clk 00:07:10]} {[%emt
00:00:02]} 5. f4 {[%clk 00:07:08]} {[%emt 00:00:03]} e6 {[%clk 00:07:07]}
{[%emt 00:00:06]} 6. Nf3 {[%clk 00:07:05]} {[%emt 00:00:05]} Bxc5 {[%emt
00:00:05]} 7. Nbd2 {[%clk 00:06:38]} {[%emt 00:00:27]} a6 {[%clk 00:07:08]}
{[%emt 00:00:03]} 8. Nb3 {[%clk 00:06:40]} {[%emt 00:00:02]} Ba7 {[%clk
00:07:09]} {[%emt 00:00:01]} 9. Bd3 {[%clk 00:06:40]} {[%emt 00:00:03]} Nge7
{[%clk 00:06:22]} {[%emt 00:00:50]} 10. Qe2 {[%clk 00:06:40]} {[%emt 00:00:03]}
Qb6 {[%clk 00:06:10]} {[%emt 00:00:16]} 11. Bd2 {[%clk 00:06:39]} {[%emt
00:00:04]} Nb4 {[%clk 00:05:59]} {[%emt 00:00:14]} 12. Nfd4 {[%clk 00:05:29]}
{[%emt 00:01:12]} Bd7 {[%clk 00:05:36]} {[%emt 00:00:26]} 13. a3 {[%clk
00:04:27]} {[%emt 00:01:06]} Nxd3+ {[%clk 00:05:38]} {[%emt 00:00:02]} 14. Qxd3
{[%clk 00:04:28]} {[%emt 00:00:02]} Bb5 {[%clk 00:05:33]} {[%emt 00:00:08]} 15.
Qg3 {[%clk 00:04:08]} {[%emt 00:00:22]} Qc7 {[%clk 00:05:29]} {[%emt 00:00:08]}
16. Nxb5 {[%clk 00:03:40]} {[%emt 00:00:31]} axb5 {[%clk 00:05:30]} {[%emt
00:00:02]} 17. O-O-O {[%clk 00:03:04]} {[%emt 00:00:38]} Nf5 {[%clk 00:05:29]}
{[%emt 00:00:04]} 18. Qd3 {[%clk 00:03:04]} {[%emt 00:00:03]} Qc4 {[%clk
00:05:31]} {[%emt 00:00:02]} 19. Na5 {[%clk 00:02:07]} {[%emt 00:01:00]} Qxd3
{[%clk 00:05:26]} {[%emt 00:00:07]} 20. cxd3 {[%clk 00:02:08]} {[%emt
00:00:01]} Rb8 {[%clk 00:04:51]} {[%emt 00:00:39]} 21. Kb1 {[%clk 00:02:09]}
{[%emt 00:00:02]} Kd7 {[%clk 00:04:45]} {[%emt 00:00:09]} 22. Rc1 {[%clk
00:02:05]} {[%emt 00:00:08]} Rhc8 {[%clk 00:03:28]} {[%emt 00:01:19]} 23. Rxc8
{[%clk 00:02:02]} {[%emt 00:00:06]} Kxc8 {[%clk 00:03:30]} 24. Rc1+ {[%clk
00:02:04]} {[%emt 00:00:01]} Kd7 {[%clk 00:03:32]} {[%emt 00:00:02]} 25. g4
{[%clk 00:01:49]} {[%emt 00:00:17]} Nh4 {[%clk 00:03:27]} {[%emt 00:00:08]} 26.
Bb4 {[%clk 00:01:08]} {[%emt 00:00:44]} Be3 {[%clk 00:02:59]} {[%emt 00:00:31]}
27. Rf1 {[%clk 00:01:10]} {[%emt 00:00:01]} b6 {[%clk 00:03:00]} {[%emt
00:00:02]} 28. Nb3 {[%clk 00:01:08]} {[%emt 00:00:05]} h5 {[%clk 00:02:24]}
{[%emt 00:00:39]} 29. h3 {[%clk 00:00:57]} {[%emt 00:00:14]} hxg4 {[%clk
00:02:22]} {[%emt 00:00:04]} 30. hxg4 {[%clk 00:00:59]} Ng6 {[%clk 00:02:24]}
31. Bd2 {[%clk 00:00:46]} {[%emt 00:00:16]} Bxd2 {[%clk 00:02:26]} {[%emt
00:00:02]} 32. Nxd2 {[%clk 00:00:48]} {[%emt 00:00:01]} Rh8 {[%clk 00:02:27]}
{[%emt 00:00:02]} 33. Nf3 {[%clk 00:00:07]} {[%emt 00:00:44]} Nxf4 {[%clk
00:01:15]} {[%emt 00:01:15]} 34. Ng5 {[%clk 00:00:09]} Nxd3 {[%clk 00:01:14]}
{[%emt 00:00:05]} 35. Rxf7+ {[%clk 00:00:11]} {[%emt 00:00:01]} Kc6 {[%clk
00:00:53]} {[%emt 00:00:24]} 36. Nxe6 {[%clk 00:00:12]} {[%emt 00:00:02]} Nxe5
{[%clk 00:00:52]} {[%emt 00:00:04]} 37. Rxg7 {[%clk 00:00:08]} {[%emt
00:00:07]} Kd6 {[%clk 00:00:39]} {[%emt 00:00:16]} 38. Nd4 {[%clk 00:00:10]}
{[%emt 00:00:01]} Kc5 {[%clk 00:00:41]} 39. Ne6+ {[%clk 00:00:05]} {[%emt
00:00:09]} Kd6 {[%clk 00:00:28]} {[%emt 00:00:16]} 40. Nd4 {[%clk 00:00:06]}
{[%emt 00:00:01]} Rh1+ {[%clk 00:00:30]} 41. Kc2 {[%clk 00:00:09]} Rh2+ {[%clk
00:00:31]} {[%emt 00:00:03]} 42. Kc3 {[%clk 00:00:11]} Nc4 {[%clk 00:00:21]}
{[%emt 00:00:12]} 43. Rg6+ {[%clk 00:00:09]} {[%emt 00:00:05]} Kd7 {[%clk
00:00:23]} 44. Rg7+ {[%clk 00:00:07]} {[%emt 00:00:05]} Kd6 {[%clk 00:00:21]}
{[%emt 00:00:05]} 45. Rg6+ {[%clk 00:00:06]} {[%emt 00:00:04]} Kd7 {[%clk
00:00:24]} 46. Rg7+ {[%clk 00:00:05]} {[%emt 00:00:04]} Kd6 {[%clk 00:00:26]}
47. Rg6+ {[%emt 00:00:17]} Kd7 {[%emt 00:00:10]} 48. b3 {[%emt 00:00:04]} Nd6
{[%emt 00:00:05]} 1/2-1/2

[Event "Cerrado Blitz Quart 2018"]
[Site "Quart (Valencia), Spain"]
[Date "2018.08.30"]
[Round "4.5"]
[White "Galvan, Jesus"]
[Black "Alonso Garcia, Aaron"]
[Result "0-1"]
[TimeControl "7 minutos +3s por jugada"]
[WhiteTitle "FM"]
[BlackTitle "FM"]
[WhiteFideId "3800458"]
[BlackFideId "24521060"]
[WhiteElo "2225"]
[BlackElo "1604"]

1. d4 {[%clk 00:07:05]} Nf6 {[%clk 00:07:05]} {[%emt 00:00:02]} 2. c4 {[%clk
00:07:07]} {[%emt 00:00:01]} e6 {[%clk 00:07:07]} 3. Nc3 {[%clk 00:07:09]}
{[%emt 00:00:02]} Bb4 {[%clk 00:07:09]} 4. f3 {[%clk 00:07:10]} c5 {[%clk
00:07:10]} {[%emt 00:00:03]} 5. d5 {[%clk 00:07:13]} {[%emt 00:00:01]} b5
{[%clk 00:06:58]} {[%emt 00:00:15]} 6. e4 {[%clk 00:07:14]} bxc4 {[%clk
00:06:57]} {[%emt 00:00:04]} 7. Bxc4 {[%clk 00:07:13]} {[%emt 00:00:04]} Ba6
{[%clk 00:06:49]} {[%emt 00:00:11]} 8. Bxa6 {[%clk 00:06:40]} {[%emt 00:00:36]}
Nxa6 {[%clk 00:06:51]} 9. Nge2 {[%clk 00:06:42]} exd5 {[%clk 00:06:23]} {[%emt
00:00:31]} 10. exd5 {[%clk 00:06:16]} {[%emt 00:00:28]} O-O {[%clk 00:06:10]}
{[%emt 00:00:16]} 11. O-O {[%clk 00:06:13]} {[%emt 00:00:05]} c4 {[%clk
00:05:55]} {[%emt 00:00:19]} 12. Kh1 {[%clk 00:06:12]} {[%emt 00:00:04]} Re8
{[%clk 00:05:42]} {[%emt 00:00:15]} 13. Bg5 {[%clk 00:06:07]} {[%emt 00:00:08]}
Qb6 {[%clk 00:05:09]} {[%emt 00:00:37]} 14. a3 {[%clk 00:05:04]} {[%emt
00:01:06]} Bf8 {[%clk 00:04:51]} {[%emt 00:00:22]} 15. Qa4 {[%clk 00:04:56]}
{[%emt 00:00:11]} Rac8 {[%clk 00:03:13]} {[%emt 00:01:40]} 16. Rad1 {[%clk
00:04:32]} {[%emt 00:00:26]} Nc5 {[%clk 00:03:03]} {[%emt 00:00:14]} 17. Qc2
{[%clk 00:02:42]} {[%emt 00:01:52]} Nd3 {[%clk 00:03:01]} {[%emt 00:00:05]} 18.
Nf4 {[%clk 00:02:44]} {[%emt 00:00:02]} Qxb2 {[%clk 00:02:27]} {[%emt
00:00:37]} 19. Qxb2 {[%clk 00:01:55]} {[%emt 00:00:52]} Nxb2 {[%clk 00:02:29]}
20. Rb1 {[%clk 00:01:55]} {[%emt 00:00:04]} Nd3 {[%clk 00:02:10]} {[%emt
00:00:21]} 21. Rb7 {[%clk 00:01:24]} {[%emt 00:00:34]} Rb8 {[%clk 00:01:36]}
{[%emt 00:00:37]} 22. Rxa7 {[%clk 00:01:03]} {[%emt 00:00:24]} Rb3 {[%clk
00:01:23]} {[%emt 00:00:16]} 23. Bxf6 {[%clk 00:00:59]} {[%emt 00:00:08]} Nxf4
{[%emt 00:00:08]} 24. Bd4 {[%clk 00:00:52]} {[%emt 00:00:08]} Ne2 {[%clk
00:00:56]} {[%emt 00:00:26]} 25. Nxe2 {[%clk 00:00:20]} {[%emt 00:00:35]} Rxe2
{[%clk 00:00:59]} 26. Rxd7 {[%clk 00:00:21]} {[%emt 00:00:01]} c3 {[%clk
00:00:17]} {[%emt 00:00:45]} 27. Rc7 {[%clk 00:00:06]} {[%emt 00:00:18]} c2
{[%clk 00:00:18]} {[%emt 00:00:01]} 28. Kg1 {[%clk 00:00:09]} Rb1 {[%clk
00:00:13]} {[%emt 00:00:09]} 29. Rc8 {[%clk 00:00:10]} {[%emt 00:00:02]} Rd2
{[%clk 00:00:09]} {[%emt 00:00:07]} 30. d6 {[%clk 00:00:04]} {[%emt 00:00:09]}
Rxf1+ {[%clk 00:00:09]} 31. Kxf1 {[%clk 00:00:07]} Rd1+ {[%clk 00:00:11]} 32.
Ke2 {[%clk 00:00:09]} {[%emt 00:00:01]} c1=Q {[%clk 00:00:10]} {[%emt
00:00:04]} 33. Rxc1 {[%clk 00:00:11]} Rxc1 {[%clk 00:00:12]} 34. d7 {[%clk
00:00:04]} {[%emt 00:00:10]} Be7 {[%clk 00:00:15]} 35. Bb6 {[%clk 00:00:06]}
{[%emt 00:00:02]} Ra1 {[%clk 00:00:14]} {[%emt 00:00:03]} 36. d8=Q+ {[%clk
00:00:04]} {[%emt 00:00:05]} Bxd8 {[%clk 00:00:15]} {[%emt 00:00:02]} 37. Bxd8
{[%clk 00:00:06]} Rxa3 {[%clk 00:00:16]} {[%emt 00:00:02]} 38. Kf2 {[%clk
00:00:06]} {[%emt 00:00:03]} f6 {[%clk 00:00:11]} {[%emt 00:00:08]} 39. Bb6
{[%clk 00:00:07]} {[%emt 00:00:03]} Kf7 {[%clk 00:00:13]} {[%emt 00:00:01]} 40.
g4 {[%clk 00:00:08]} {[%emt 00:00:02]} Ke6 {[%clk 00:00:14]} {[%emt 00:00:02]}
41. Kg3 {[%clk 00:00:08]} {[%emt 00:00:03]} Rb3 {[%clk 00:00:13]} {[%emt
00:00:04]} 42. Bc5 {[%clk 00:00:08]} {[%emt 00:00:02]} Kd5 {[%clk 00:00:13]}
{[%emt 00:00:03]} 43. Bf8 {[%clk 00:00:10]} Rb7 {[%clk 00:00:15]} {[%emt
00:00:02]} 44. h4 {[%clk 00:00:11]} {[%emt 00:00:01]} Kd4 {[%clk 00:00:16]}
{[%emt 00:00:02]} 45. h5 {[%clk 00:00:13]} {[%emt 00:00:01]} Ke3 {[%clk
00:00:13]} {[%emt 00:00:06]} 46. h6 {[%clk 00:00:12]} {[%emt 00:00:05]} g6
{[%emt 00:00:05]} 47. Bc5+ {[%clk 00:00:09]} Ke2 {[%clk 00:00:16]} {[%emt
00:00:03]} 48. Bd4 {[%clk 00:00:05]} {[%emt 00:00:07]} Rb3 {[%clk 00:00:16]}
{[%emt 00:00:04]} 49. Kh4 {[%clk 00:00:04]} {[%emt 00:00:04]} Rxf3 {[%clk
00:00:16]} {[%emt 00:00:02]} 50. Bc5 {[%clk 00:00:06]} {[%emt 00:00:02]} g5+
{[%clk 00:00:18]} {[%emt 00:00:01]} 0-1

[Event "Cerrado Blitz Quart 2018"]
[Site "Quart (Valencia), Spain"]
[Date "2018.08.30"]
[Round "5.1"]
[White "Alonso Garcia, Aaron"]
[Black "Pena Riasco, Alexander"]
[Result "1-0"]
[TimeControl "7 minutos +3s por jugada"]
[WhiteTitle "FM"]
[BlackTitle "FM"]
[WhiteFideId "24521060"]
[BlackFideId "4403339"]
[WhiteElo "1604"]
[BlackElo "2119"]

1. e4 {[%clk 00:07:03]} {[%emt 00:04:29]} d5 {[%clk 00:07:03]} 2. exd5 {[%clk
00:07:02]} {[%emt 00:00:15]} Qxd5 {[%clk 00:07:06]} 3. Nc3 {[%emt 00:00:03]}
Qa5 4. d4 {[%clk 00:07:05]} Nf6 {[%clk 00:07:11]} {[%emt 00:00:03]} 5. Nf3
{[%clk 00:07:06]} c6 {[%clk 00:07:13]} 6. Bc4 {[%clk 00:07:03]} {[%emt
00:00:08]} Bf5 {[%clk 00:07:13]} 7. O-O {[%clk 00:07:01]} {[%emt 00:00:14]} e6
{[%clk 00:07:16]} 8. Re1 {[%clk 00:06:55]} {[%emt 00:00:04]} Bb4 {[%clk
00:07:18]} 9. Bd2 {[%clk 00:06:56]} O-O {[%clk 00:07:19]} {[%emt 00:00:03]} 10.
a3 {[%clk 00:06:57]} {[%emt 00:00:04]} Bxc3 {[%clk 00:07:21]} 11. Bxc3 {[%clk
00:07:00]} Qc7 {[%clk 00:07:23]} {[%emt 00:00:06]} 12. Ne5 {[%clk 00:06:38]}
{[%emt 00:00:16]} Nbd7 {[%clk 00:07:25]} {[%emt 00:00:09]} 13. Bd2 {[%clk
00:05:48]} {[%emt 00:00:45]} Nxe5 {[%clk 00:07:12]} {[%emt 00:00:40]} 14. dxe5
{[%clk 00:05:49]} {[%emt 00:00:04]} Nd5 {[%clk 00:07:14]} 15. Bf1 {[%clk
00:05:23]} {[%emt 00:00:06]} Rfd8 {[%clk 00:07:15]} {[%emt 00:00:14]} 16. Bg5
{[%clk 00:05:20]} {[%emt 00:00:03]} Rd7 {[%clk 00:07:17]} 17. Qe2 {[%clk
00:04:56]} {[%emt 00:00:18]} b5 {[%clk 00:06:50]} {[%emt 00:00:38]} 18. c4
{[%clk 00:04:47]} {[%emt 00:00:33]} Nb6 {[%clk 00:06:40]} {[%emt 00:00:03]} 19.
cxb5 {[%clk 00:04:32]} {[%emt 00:00:03]} Bd3 {[%clk 00:06:36]} {[%emt
00:00:05]} 20. Qg4 {[%clk 00:04:18]} {[%emt 00:00:14]} Bxf1 {[%clk 00:06:09]}
{[%emt 00:00:30]} 21. bxc6 {[%clk 00:04:01]} {[%emt 00:00:19]} Rd5 {[%clk
00:05:50]} {[%emt 00:00:22]} 22. Bf6 {[%clk 00:03:57]} {[%emt 00:00:08]} g6
{[%clk 00:05:49]} {[%emt 00:00:33]} 23. Qh4 {[%clk 00:03:32]} {[%emt 00:00:03]}
h5 {[%clk 00:05:36]} {[%emt 00:00:12]} 24. Qg5 {[%clk 00:03:19]} {[%emt
00:00:22]} Kf8 {[%clk 00:05:37]} 25. Qh6+ {[%emt 00:00:04]} Ke8 26. Qh8# 1-0

[Event "Cerrado Blitz Quart 2018"]
[Site "Quart (Valencia), Spain"]
[Date "2018.08.30"]
[Round "5.2"]
[White "Diaz Velandia, J Manuel"]
[Black "Galvan, Jesus"]
[Result "1-0"]
[TimeControl "7 minutos +3s por jugada"]
[WhiteTitle "FM"]
[BlackTitle "FM"]
[WhiteFideId "3901939"]
[BlackFideId "3800458"]
[WhiteElo "2367"]
[BlackElo "2225"]

1. e4 {[%clk 00:06:57]} c5 {[%clk 00:07:02]} {[%emt 00:00:08]} 2. Nf3 {[%clk
00:06:59]} Nc6 {[%clk 00:06:44]} {[%emt 00:00:21]} 3. d4 {[%clk 00:07:01]} cxd4
{[%clk 00:06:46]} 4. Nxd4 {[%clk 00:07:02]} Nf6 {[%clk 00:06:38]} {[%emt
00:00:09]} 5. Nc3 {[%clk 00:07:03]} {[%emt 00:00:13]} e5 {[%clk 00:06:32]}
{[%emt 00:00:08]} 6. Ndb5 {[%clk 00:07:05]} d6 {[%clk 00:06:34]} 7. Nd5 {[%clk
00:07:07]} Nxd5 {[%clk 00:06:36]} {[%emt 00:00:03]} 8. exd5 {[%clk 00:07:09]}
Nb8 {[%clk 00:06:38]} 9. Qd3 {[%clk 00:06:34]} {[%emt 00:00:56]} Be7 {[%clk
00:06:19]} {[%emt 00:00:06]} 10. Qc3 {[%clk 00:06:20]} {[%emt 00:00:08]} Na6
{[%clk 00:06:17]} {[%emt 00:00:10]} 11. Be3 {[%clk 00:06:22]} O-O {[%clk
00:04:16]} {[%emt 00:01:59]} 12. Nxa7 {[%clk 00:06:23]} {[%emt 00:00:36]} Bf5
{[%clk 00:04:14]} 13. Bxa6 {[%clk 00:06:21]} bxa6 {[%clk 00:04:13]} 14. Nc6
{[%clk 00:06:22]} Qd7 {[%clk 00:04:15]} 15. O-O {[%clk 00:06:12]} {[%emt
00:00:07]} Bf6 {[%clk 00:04:14]} 16. Qa3 {[%clk 00:05:58]} {[%emt 00:00:14]}
Rfc8 {[%clk 00:02:34]} {[%emt 00:01:40]} 17. c4 {[%clk 00:05:51]} {[%emt
00:00:12]} g6 {[%clk 00:01:58]} {[%emt 00:00:40]} 18. f3 {[%clk 00:05:46]}
{[%emt 00:00:08]} Bg7 {[%clk 00:02:00]} {[%emt 00:00:03]} 19. Rac1 {[%clk
00:05:17]} {[%emt 00:00:28]} h5 {[%clk 00:02:01]} {[%emt 00:00:33]} 20. Kh1
{[%clk 00:04:45]} {[%emt 00:00:07]} e4 {[%clk 00:01:37]} {[%emt 00:00:24]} 21.
Bg5 {[%clk 00:04:04]} {[%emt 00:00:44]} Re8 {[%clk 00:01:13]} {[%emt 00:00:38]}
22. fxe4 {[%clk 00:04:05]} Rxe4 {[%clk 00:01:12]} 23. Bf4 {[%clk 00:04:01]}
{[%emt 00:00:08]} Rxf4 {[%clk 00:01:07]} {[%emt 00:00:07]} 24. Rxf4 {[%clk
00:04:03]} Bh6 {[%clk 00:01:10]} 25. Rff1 {[%clk 00:03:47]} {[%emt 00:00:15]}
Bxc1 {[%clk 00:01:10]} 26. Rxc1 {[%clk 00:03:50]} Re8 {[%clk 00:01:13]} 27. Nd4
{[%clk 00:03:07]} {[%emt 00:00:14]} Bg4 {[%clk 00:00:26]} {[%emt 00:00:53]} 28.
h3 {[%clk 00:02:25]} {[%emt 00:00:45]} Re4 {[%clk 00:00:23]} {[%emt 00:00:05]}
29. Nf3 {[%clk 00:01:50]} {[%emt 00:00:59]} Bxf3 {[%clk 00:00:07]} {[%emt
00:00:06]} 30. Qxf3 {[%clk 00:01:52]} Qe7 {[%clk 00:00:10]} 31. Qf1 {[%clk
00:01:19]} {[%emt 00:00:47]} a5 {[%clk 00:00:07]} 32. b3 {[%clk 00:01:18]}
{[%emt 00:00:08]} Re2 {[%clk 00:00:07]} 33. a3 {[%clk 00:01:20]} Qe4 {[%clk
00:00:05]} 34. Qf3 {[%clk 00:00:54]} {[%emt 00:00:19]} Qxf3 {[%clk 00:00:05]}
{[%emt 00:00:29]} 35. gxf3 {[%clk 00:00:56]} Re3 {[%clk 00:00:07]} 36. b4
{[%clk 00:00:56]} {[%emt 00:00:04]} Rxa3 {[%clk 00:00:09]} 37. c5 {[%clk
00:00:56]} axb4 {[%clk 00:00:09]} 38. c6 {[%clk 00:00:51]} Ra8 {[%clk
00:00:08]} {[%emt 00:00:09]} 39. Rb1 {[%clk 00:00:53]} Kg7 {[%clk 00:00:08]} 40.
Rxb4 Kf6 41. Re4 {[%clk 00:00:23]} {[%emt 00:00:25]} h4 {[%clk 00:00:07]}
{[%emt 00:00:11]} 42. Kg2 {[%clk 00:00:23]} {[%emt 00:00:04]} Ra2+ {[%clk
00:00:05]} {[%emt 00:00:04]} 43. Kf1 {[%clk 00:00:25]} Rc2 {[%clk 00:00:06]}
{[%emt 00:00:03]} 44. Ke1 {[%clk 00:00:21]} {[%emt 00:00:06]} g5 {[%clk
00:00:08]} {[%emt 00:00:04]} 45. Kd1 {[%clk 00:00:23]} Rc5 {[%clk 00:00:09]} 46.
Rd4 {[%clk 00:00:26]} Ke5 {[%clk 00:00:11]} {[%emt 00:00:07]} 47. Rd3 {[%clk
00:00:26]} {[%emt 00:00:03]} Kf4 {[%clk 00:00:12]} 48. Kd2 {[%clk 00:00:22]}
{[%emt 00:00:03]} Ra5 {[%clk 00:00:13]} {[%emt 00:00:08]} 49. Kc3 {[%clk
00:00:10]} {[%emt 00:00:12]} f5 {[%clk 00:00:14]} 50. Kb4 {[%clk 00:00:12]} Ra8
{[%clk 00:00:14]} {[%emt 00:00:04]} 51. Kb5 {[%clk 00:00:14]} Kg3 {[%clk
00:00:16]} {[%emt 00:00:04]} 52. c7 {[%clk 00:00:09]} {[%emt 00:00:06]} f4
{[%clk 00:00:15]} {[%emt 00:00:03]} 53. Kc6 {[%clk 00:00:09]} {[%emt 00:00:04]}
Kxh3 {[%clk 00:00:16]} {[%emt 00:00:07]} 54. Kxd6 {[%clk 00:00:11]} Kg3 {[%clk
00:00:17]} 55. Ke5 {[%clk 00:00:09]} {[%emt 00:00:03]} h3 {[%clk 00:00:19]} 56.
d6 {[%clk 00:00:09]} {[%emt 00:00:03]} h2 {[%clk 00:00:21]} {[%emt 00:00:04]}
57. Rd1 {[%clk 00:00:12]} g4 {[%clk 00:00:19]} {[%emt 00:00:04]} 58. fxg4
{[%clk 00:00:13]} {[%emt 00:00:03]} f3 {[%clk 00:00:21]} 59. d7 {[%clk
00:00:16]} f2 {[%clk 00:00:23]} 60. d8=Q {[%clk 00:00:15]} {[%emt 00:00:05]}
Rxd8 {[%clk 00:00:25]} 61. cxd8=Q {[%clk 00:00:14]} {[%emt 00:00:06]} Kg2
{[%clk 00:00:26]} {[%emt 00:00:03]} 62. Qd5+ {[%clk 00:00:16]} 1-0